fUST/lending_fUST_20251026
["ID","MTS","AMOUNT","RATE_DAILY","PERIOD"]
[392411978,1761446709153,227.2416675,0.00014155,2]
[392411979,1761446710966,409.0350015,0.00014155,2]
[392411980,1761446712893,727.173336,0.00014155,2]
[392411981,1761446715050,1135.07212916,0.00014155,2]
[392411982,1761446716169,-163.4508527,0.000149,2]
[392411983,1761446716198,-590.4913694,0.000149,2]
[392411984,1761446716229,-547.0,0.000149,2]
[392411985,1761446716257,-500.0,0.000149,2]
[392411986,1761446792136,10000.01,0.000146,2]
[392411987,1761446792159,10000.01,0.000146,2]
[392411988,1761446792183,10000.01,0.000146,2]
[392411989,1761446792204,10000.01,0.000146,2]
[392411990,1761446792225,10000.01,0.000146,2]
[392411991,1761446792247,10000.01,0.000146,2]
[392411992,1761446792268,10000.01,0.000146,2]
[392411993,1761446792473,10000.01,0.000146,2]
[392411994,1761446792498,10000.01,0.000146,2]
[392411995,1761446792519,10000.01,0.000146,2]
[392411996,1761446813841,-4492.76500708,0.000146,2]
[392411997,1761446814202,-10000.01,0.000146,2]
[392411998,1761446814220,-10000.01,0.000146,2]
[392411999,1761446814234,-10000.01,0.000146,2]
[392412000,1761446814276,-10000.01,0.000146,2]
[392412001,1761446814376,-10000.01,0.000146,2]
[392412002,1761446814477,-10000.01,0.000146,2]
[392412003,1761446814593,-10000.01,0.000146,2]
[392412004,1761446814703,-10000.01,0.000146,2]
[392412005,1761446814849,-10000.01,0.000146,2]
[392412006,1761446819792,-10000.01,0.000146,2]
[392412007,1761446831604,190.57,0.00012329,2]
[392412008,1761446832027,-300.0,0.00014453,2]
[392412009,1761446832054,-300.0,0.00014599,2]
[392412010,1761446839713,8800.01,0.00014454,2]
[392412011,1761446839733,10000.01,0.00014454,2]
[392412012,1761446839754,10000.01,0.00014454,2]
[392412013,1761446839777,3378.49658828,0.00014454,2]
[392412014,1761446842014,158.8,0.00012329,2]
[392412015,1761446848267,600.0,0.00014454,2]
[392412016,1761446850737,-7062.71341172,0.000146,2]
[392412017,1761446850909,-10000.01,0.000146,2]
[392412018,1761446851035,-10000.01,0.000146,2]
[392412019,1761446852478,794.05,0.00012329,2]
[392412020,1761446857477,-10000.01,0.00014454,2]
[392412021,1761446857590,-10000.01,0.00014454,2]
[392412022,1761446857714,-10000.01,0.00014454,2]
[392412023,1761446863506,-10000.01,0.00014454,2]
[392412024,1761446869570,-4923.06383314,0.00014309,2]
[392412025,1761446869602,-153.88233372,0.00014454,2]
[392412026,1761446869650,-10000.01,0.00014454,2]
[392412027,1761446869775,-10000.01,0.00014454,2]
[392412028,1761446869922,-2584.86423828,0.00014454,2]
[392412029,1761446871315,1626.66071165,0.00014209,2]
[392412030,1761446873107,3203.62081179,0.00014454,2]
[392412031,1761446875707,-5169.72847656,0.00014454,2]
[392412032,1761446875824,-4927.4903649,0.00014454,2]
[392412033,1761446875845,-145.0292702,0.00014454,2]
[392412034,1761446909982,-152.65368445,0.00014166,2]
[392412035,1761446912524,-153.53254037,0.00014166,2]
[392412036,1761446914058,-221.65913343,0.00014166,2]
[392412037,1761446916386,-303.45128676,0.00014166,2]
[392412038,1761446918456,-207.81920545,0.00014166,2]
[392412039,1761446920355,-168.956402,0.00014166,2]
[392412040,1761446930080,177.9500127,0.00013711,2]
[392412041,1761446937164,1544.324594,0.00013699,2]
[392412045,1761446993315,169.1077738,6.758e-05,2]
[392412048,1761447020977,300.0,0.000137,2]
[392412095,1761447031876,-358.19098001,0.00014166,2]
[392412097,1761447031887,-1363.75442692,0.00014166,2]
[392412098,1761447031896,-300.0,0.00014308,2]
[392412100,1761447031905,-300.0,0.00014308,2]
[392412101,1761447031914,-300.0,0.00014308,2]
[392412103,1761447031923,-300.0,0.00014308,2]
[392412105,1761447031932,-130.17994681,0.00014308,2]
[392412107,1761447031943,-258.22366975,0.00014308,2]
[392412139,1761447032420,300.0,0.000137,2]
[392412295,1761447040201,-3e-08,0.00014308,2]
[392412296,1761447040212,-811.59638341,0.00014308,2]
[392412297,1761447040222,-3134.3318477,0.00014309,2]
[392412298,1761447042834,-1189.9805006,0.00014309,2]
[392412299,1761447042847,-2253.92377803,0.00014309,2]
[392412300,1761447042891,-2293.9,0.00014309,2]
[392412302,1761447043264,300.0,0.000137,2]
[392412311,1761447045966,-1731.58399412,0.00014166,2]
[392412312,1761447047042,-3899.7105101,0.00014166,2]
[392412313,1761447053684,300.0,0.000137,2]
[392412314,1761447064302,300.0,0.000137,2]
[392412315,1761447064401,24593.57213779,0.00030137,120]
[392412316,1761447065659,-4108.27615807,0.00014309,2]
[392412317,1761447065696,-1183.45768386,0.00014309,2]
[392412318,1761447065897,-600.0,0.00014309,2]
[392412319,1761447067334,1696.18001387,0.00014166,2]
[392412320,1761447073678,300.0,0.000142,2]
[392412321,1761447075366,300.0,0.000137,2]
[392412322,1761447075529,310.0,0.00014267,2]
[392412323,1761447084136,310.0,0.00014267,2]
[392412324,1761447084171,300.0,0.000142,2]
[392412325,1761447085915,300.0,0.000137,2]
[392412326,1761447095411,300.0,0.000142,2]
[392412327,1761447096673,300.0,0.000137,2]
[392412328,1761447100909,310.0,0.00014267,2]
[392412329,1761447104394,-199.91204437,0.00014411,2]
[392412330,1761447105925,-110.08795563,0.00014411,2]
[392412331,1761447105948,-164.65299022,0.00014453,2]
[392412332,1761447105969,-67.84912644,0.00014453,2]
[392412333,1761447105998,300.0,0.000142,2]
[392412334,1761447108009,-160.53083011,0.00014453,2]
[392412335,1761447108030,-119.24507868,0.00014453,2]
[392412336,1761447108835,460.53083011,0.00014308,2]
[392412337,1761447110088,-172.72484852,0.00014453,2]
[392412338,1761447111697,-8.0300728,0.00014453,2]
[392412339,1761447111918,-218.51005731,0.00014574,2]
[392412340,1761447113926,-196.0,0.00014574,2]
[392412341,1761447116742,-214.72286181,0.00014574,2]
[392412342,1761447120020,-2014.51432142,0.00014574,2]
[392412343,1761447120144,-784.27051318,0.00014574,2]
[392412344,1761447120179,-4813.29915602,0.00014574,2]
[392412345,1761447120210,-373.41168796,0.00014574,2]
[392412346,1761447120350,-686.32976211,0.00014574,2]
[392412347,1761447124553,8627.35047578,0.00014454,2]
[392412348,1761447124576,10000.01,0.00014454,2]
[392412349,1761447124597,10000.01,0.00014454,2]
[392412350,1761447124622,10000.01,0.00014454,2]
[392412351,1761447124645,90.59014216,0.00014454,2]
[392412352,1761447128740,1383.5200535,0.00013887,2]
[392412353,1761447132652,300.0,0.00014453,2]
[392412354,1761447134305,500.0,0.00014453,2]
[392412355,1761447134339,606.52549046,0.00014453,2]
[392412356,1761447134377,500.0,0.00014453,2]
[392412357,1761447134408,-158.13824562,0.00014599,2]
[392412358,1761447134440,500.0,0.00014453,2]
[392412359,1761447138274,-141.86175438,0.00014599,2]
[392412360,1761447154100,-7492.0338381,0.000146,2]
[392412361,1761447154187,-10000.01,0.000146,2]
[392412362,1761447154393,-10000.01,0.000146,2]
[392412363,1761447154526,-10000.01,0.000146,2]
[392412364,1761447154671,-10000.01,0.000146,2]
[392412365,1761447154769,-10000.01,0.000146,2]
[392412366,1761447162722,-10000.01,0.00014454,2]
[392412367,1761447162938,-3777.31407222,0.00014454,2]
[392412368,1761447166303,500.0,0.00014453,2]
[392412369,1761447171263,1945.38185556,0.00014454,2]
[392412370,1761447171288,10000.01,0.00014454,2]
[392412371,1761447171853,-7554.62814444,0.00014454,2]
[392412372,1761447171992,-287.79679515,0.00014454,2]
[392412373,1761447172016,-9424.4164097,0.00014454,2]
[392412374,1761447179125,159.86596959,0.00014453,2]
[392412375,1761447180271,207.19061976,0.00014454,2]
[392412376,1761447191023,1000.0,0.00014494,2]
[392412377,1761447191266,1000.0,0.00014494,2]
[392412378,1761447191513,1000.0,0.00014494,2]
[392412379,1761447191739,1000.0,0.00014494,2]
[392412380,1761447191993,1000.0,0.00014494,2]
[392412381,1761447195006,-159.86596959,0.00014599,2]
[392412382,1761447195028,-7.75590937,0.00014599,2]
[392412383,1761447195560,459.86596959,0.00014453,2]
[392412384,1761447196072,-292.24409063,0.00014599,2]
[392412385,1761447196903,-196.0,0.000146,2]
[392412386,1761447197976,196.0,0.00014599,2]
[392412387,1761447198073,500.0,0.00014599,2]
[392412388,1761447198477,-281.1814161,0.000146,2]
[392412389,1761447198553,320.22924431,0.00014599,2]
[392412390,1761447198585,500.0,0.00014599,2]
[392412391,1761447198616,500.0,0.00014599,2]
[392412392,1761447198667,500.0,0.00014599,2]
[392412393,1761447200696,-274.10775606,0.000146,2]
[392412394,1761447203485,6899.29257443,0.00014454,2]
[392412395,1761447203508,10000.01,0.00014454,2]
[392412396,1761447203531,10000.01,0.00014454,2]
[392412397,1761447203552,10000.01,0.00014454,2]
[392412398,1761447203574,6629.88322717,0.00014454,2]
[392412399,1761447205973,185.5958223,0.00014599,2]
[392412400,1761447235292,-7942.10657285,0.00014454,2]
[392412401,1761447235439,-10000.01,0.00014454,2]
[392412402,1761447235611,-2832.7379636,0.00014454,2]
[392412403,1761447235632,-4334.5340728,0.00014454,2]
[392412404,1761447242749,168.0,0.00014453,2]
[392412405,1761447253426,-300.0,0.00014598,2]
[392412406,1761447271720,-500.0,0.00014599,2]
[392412407,1761447271750,-500.0,0.00014599,2]
[392412408,1761447271786,-500.0,0.00014599,2]
[392412409,1761447271818,-524.61965276,0.00014599,2]
[392412410,1761447271851,-500.0,0.00014599,2]
[392412411,1761447271882,-500.0,0.00014599,2]
[392412412,1761447271915,-500.0,0.00014599,2]
[392412413,1761447271944,-500.0,0.00014599,2]
[392412414,1761447271973,-500.0,0.00014599,2]
[392412415,1761447272001,-450.77069448,0.00014599,2]
[392412416,1761447272124,-49.22930552,0.00014599,2]
[392412417,1761447272154,-500.0,0.00014599,2]
[392412418,1761447272184,-500.0,0.00014599,2]
[392412419,1761447272213,-500.0,0.00014599,2]
[392412420,1761447272241,-500.0,0.00014599,2]
[392412421,1761447272274,-511.45642769,0.00014599,2]
[392412422,1761447272304,-500.0,0.00014599,2]
[392412423,1761447272333,-500.0,0.00014599,2]
[392412424,1761447272364,-500.0,0.00014599,2]
[392412425,1761447272394,-500.0,0.00014599,2]
[392412426,1761447272426,-378.63853358,0.00014599,2]
[392412427,1761447272856,-121.36146642,0.00014599,2]
[392412428,1761447272884,-500.0,0.00014599,2]
[392412429,1761447272918,-500.0,0.00014599,2]
[392412430,1761447272947,-500.0,0.00014599,2]
[392412431,1761447272976,-500.0,0.00014599,2]
[392412432,1761447273005,-500.0,0.00014599,2]
[392412433,1761447273035,-500.0,0.00014599,2]
[392412434,1761447273064,-500.0,0.00014599,2]
[392412435,1761447273095,-500.0,0.00014599,2]
[392412436,1761447273125,-500.0,0.00014599,2]
[392412437,1761447273154,-257.28706716,0.00014599,2]
[392412438,1761447273248,-242.71293284,0.00014599,2]
[392412439,1761447273277,-500.0,0.00014599,2]
[392412440,1761447273306,-500.0,0.00014599,2]
[392412441,1761447273335,-500.0,0.00014599,2]
[392412442,1761447273364,-500.0,0.00014599,2]
[392412443,1761447273393,-500.0,0.00014599,2]
[392412444,1761447273423,-210.99844724,0.00014599,2]
[392412445,1761447273452,-396.97134333,0.00014599,2]
[392412446,1761447273480,-500.0,0.00014599,2]
[392412447,1761447273510,-500.0,0.00014599,2]
[392412448,1761447273539,-500.0,0.00014599,2]
[392412449,1761447273838,-500.0,0.00014599,2]
[392412450,1761447273867,-500.0,0.00014599,2]
[392412451,1761447273902,-500.0,0.00014599,2]
[392412452,1761447273933,-500.0,0.00014599,2]
[392412453,1761447273961,-500.0,0.00014599,2]
[392412454,1761447273989,-500.0,0.00014599,2]
[392412455,1761447274018,-500.0,0.00014599,2]
[392412456,1761447274062,-178.95135915,0.00014599,2]
[392412457,1761447274094,-500.0,0.00014599,2]
[392412458,1761447274124,-304.0,0.00014599,2]
[392412459,1761447274156,-500.0,0.00014599,2]
[392412460,1761447274283,-500.0,0.00014599,2]
[392412461,1761447274313,-500.0,0.00014599,2]
[392412462,1761447274342,-500.0,0.00014599,2]
[392412463,1761447274371,-500.0,0.00014599,2]
[392412464,1761447274399,-500.0,0.00014599,2]
[392412465,1761447274428,-500.0,0.00014599,2]
[392412466,1761447274456,-392.70426552,0.00014599,2]
[392412467,1761447274484,-500.0,0.00014599,2]
[392412468,1761447274512,-500.0,0.00014599,2]
[392412469,1761447274541,-500.0,0.00014599,2]
[392412470,1761447274652,-500.0,0.00014599,2]
[392412471,1761447274680,-500.0,0.00014599,2]
[392412472,1761447274707,-500.0,0.00014599,2]
[392412473,1761447274735,-500.0,0.00014599,2]
[392412474,1761447274764,-500.0,0.00014599,2]
[392412475,1761447274793,-500.0,0.00014599,2]
[392412476,1761447274823,-500.0,0.00014599,2]
[392412477,1761447274852,-500.0,0.00014599,2]
[392412478,1761447274881,-500.0,0.00014599,2]
[392412479,1761447274914,-500.0,0.00014599,2]
[392412480,1761447274970,-500.0,0.00014599,2]
[392412481,1761447275000,-500.0,0.00014599,2]
[392412482,1761447275031,-500.0,0.00014599,2]
[392412483,1761447275060,-500.0,0.00014599,2]
[392412484,1761447275088,-500.0,0.00014599,2]
[392412485,1761447275116,-500.0,0.00014599,2]
[392412486,1761447275145,-500.0,0.00014599,2]
[392412487,1761447275173,-195.18981533,0.00014599,2]
[392412488,1761447275201,-500.0,0.00014599,2]
[392412489,1761447275228,-500.0,0.00014599,2]
[392412490,1761447275257,-109.63036934,0.00014599,2]
[392412491,1761447275303,-390.36963066,0.00014599,2]
[392412492,1761447275334,-500.0,0.00014599,2]
[392412493,1761447275363,-500.0,0.00014599,2]
[392412494,1761447275392,-500.0,0.00014599,2]
[392412495,1761447275421,-303.35720173,0.00014599,2]
[392412496,1761447275448,-500.0,0.00014599,2]
[392412497,1761447275478,-500.0,0.00014599,2]
[392412498,1761447275509,-500.0,0.00014599,2]
[392412499,1761447275539,-500.0,0.00014599,2]
[392412500,1761447275566,-500.0,0.00014599,2]
[392412501,1761447275596,-112.55633522,0.00014599,2]
[392412502,1761447275646,-387.44366478,0.00014599,2]
[392412503,1761447275678,-500.0,0.00014599,2]
[392412504,1761447275709,-500.0,0.00014599,2]
[392412505,1761447282079,-10000.01,0.000146,2]
[392412506,1761447282336,-10000.01,0.000146,2]
[392412507,1761447282437,-10000.01,0.000146,2]
[392412508,1761447282540,-10000.01,0.000146,2]
[392412509,1761447282650,-10000.01,0.000146,2]
[392412510,1761447298964,-168.0,0.00014454,2]
[392412511,1761447311030,1500.0,0.00014453,2]
[392412513,1761447333891,1500.0,0.00014453,2]
[392412514,1761447354046,-300.0,0.00014599,2]
[392412515,1761447354082,-1200.0,0.00014599,2]
[392412516,1761447356860,7000.01,0.00014454,2]
[392412517,1761447356882,10000.01,0.00014454,2]
[392412518,1761447356904,10000.01,0.00014454,2]
[392412519,1761447366089,-4681.02708681,0.00014454,2]
[392412520,1761447372098,-500.0,0.00014453,2]
[392412521,1761447372126,-500.0,0.00014453,2]
[392412522,1761447390863,-637.95582638,0.00014454,2]
[392412523,1761447392656,76667.74,0.000301,120]
[392412524,1761447394755,8724.09834724,0.00014014,2]
[392412525,1761447394777,10000.01,0.00014014,2]
[392412526,1761447394797,10000.01,0.00014014,2]
[392412527,1761447394820,10000.01,0.00014014,2]
[392412528,1761447394840,6425.59695646,0.00014014,2]
[392412529,1761447400834,1621.068047,0.00014355,2]
[392412530,1761447402002,1953.34499654,0.00013679,2]
[392412531,1761447402023,1979.47332146,0.00013679,2]
[392412532,1761447404973,-159.90257794,0.000145,2]
[392412533,1761447406462,-140.09742206,0.000145,2]
[392412534,1761447406485,-15.368318,0.000145,2]
[392412535,1761447408498,500.0,0.00014453,2]
[392412536,1761447408587,-284.631682,0.000145,2]
[392412537,1761447408616,-721.068047,0.000145,2]
[392412538,1761447408646,-300.0,0.000145,2]
[392412539,1761447408674,-300.0,0.000145,2]
[392412540,1761447408785,500.0,0.00014453,2]
[392412541,1761447417269,300.0,0.000145,2]
[392412542,1761447423903,5988.610542,0.00014453,2]
[392412543,1761447423929,10000.01,0.00014453,2]
[392412544,1761447423952,1638.51087372,0.00014453,2]
[392412545,1761447426971,-300.0,0.00014598,2]
[392412546,1761447436007,-500.0,0.00014599,2]
[392412547,1761447436038,-500.0,0.00014599,2]
[392412548,1761447436068,-500.0,0.00014599,2]
[392412549,1761447436097,-500.0,0.00014599,2]
[392412550,1761447436125,-500.0,0.00014599,2]
[392412551,1761447436154,-500.0,0.00014599,2]
[392412552,1761447436188,-500.0,0.00014599,2]
[392412553,1761447436217,-500.0,0.00014599,2]
[392412554,1761447436248,-500.0,0.00014599,2]
[392412555,1761447436280,-402.58120766,0.00014599,2]
[392412556,1761447436450,-500.0,0.00014599,2]
[392412557,1761447436480,-505.76969085,0.00014599,2]
[392412558,1761447436511,-500.0,0.00014599,2]
[392412559,1761447436539,-500.0,0.00014599,2]
[392412560,1761447436568,-500.0,0.00014599,2]
[392412561,1761447436596,-500.0,0.00014599,2]
[392412562,1761447436630,-461.67808115,0.00014599,2]
[392412563,1761447436659,-500.0,0.00014599,2]
[392412564,1761447436692,-500.0,0.00014599,2]
[392412565,1761447436725,-500.0,0.00014599,2]
[392412566,1761447436853,-500.0,0.00014599,2]
[392412567,1761447436882,-500.0,0.00014599,2]
[392412568,1761447436912,-500.0,0.00014599,2]
[392412569,1761447436944,-500.0,0.00014599,2]
[392412570,1761447436975,-500.0,0.00014599,2]
[392412571,1761447437004,-500.0,0.00014599,2]
[392412572,1761447437036,-154.03016157,0.00014599,2]
[392412573,1761447437064,-500.0,0.00014599,2]
[392412574,1761447437094,-500.0,0.00014599,2]
[392412575,1761447437121,-500.0,0.00014599,2]
[392412576,1761447437150,-191.94967686,0.00014599,2]
[392412577,1761447437434,-308.05032314,0.00014599,2]
[392412578,1761447437462,-500.0,0.00014599,2]
[392412579,1761447437490,-303.07227449,0.00014599,2]
[392412580,1761447437518,-500.0,0.00014599,2]
[392412581,1761447437545,-500.0,0.00014599,2]
[392412582,1761447437573,-500.0,0.00014599,2]
[392412583,1761447437602,-500.0,0.00014599,2]
[392412584,1761447437631,-500.0,0.00014599,2]
[392412585,1761447437660,-500.0,0.00014599,2]
[392412586,1761447437690,-500.0,0.00014599,2]
[392412587,1761447437720,-277.76480474,0.00014599,2]
[392412588,1761447438023,-222.23519526,0.00014599,2]
[392412589,1761447438055,-550.0,0.00014599,2]
[392412590,1761447438087,-500.0,0.00014599,2]
[392412591,1761447438119,-500.0,0.00014599,2]
[392412592,1761447446696,6455.53960948,0.00014454,2]
[392412593,1761447446718,6991.64233857,0.00014454,2]
[392412594,1761447449504,-209.31451038,0.000146,2]
[392412595,1761447463111,-1200.0,0.00014599,2]
[392412596,1761447463589,-5950.36835299,0.000146,2]
[392412597,1761447463619,-10000.01,0.000146,2]
[392412598,1761447463728,-10000.01,0.000146,2]
[392412599,1761447463852,-4041.17570757,0.000146,2]
[392412600,1761447463878,-399.52424261,0.000146,2]
[392412601,1761447463920,-1118.61009964,0.000146,2]
[392412602,1761447469205,-2035.14234491,0.00014604,2]
[392412603,1761447477195,168.0,0.00014527,2]
[392412604,1761447478917,226.61031115,0.00014599,2]
[392412605,1761447497405,500.0,0.00014599,2]
[392412606,1761447497439,500.0,0.00014599,2]
[392412607,1761447497471,500.0,0.00014599,2]
[392412608,1761447497504,417.51936149,0.00014599,2]
[392412609,1761447497535,500.0,0.00014599,2]
[392412610,1761447497574,500.0,0.00014599,2]
[392412611,1761447497613,500.0,0.00014599,2]
[392412612,1761447497644,500.0,0.00014599,2]
[392412613,1761447497674,500.0,0.00014599,2]
[392412614,1761447497703,500.0,0.00014599,2]
[392412615,1761447497737,500.0,0.00014599,2]
[392412616,1761447497767,252.88843511,0.00014599,2]
[392412617,1761447500467,168.0,0.00014527,2]
[392412618,1761447501039,4161.6022034,0.00013713,2]
[392412619,1761447501060,2829.7207947,0.00013713,2]
[392412620,1761447515959,800.0,0.00014275,2]
[392412621,1761447523429,168.0,0.00014527,2]
[392412622,1761447567262,157.14521273,0.00014598,2]
[392412623,1761447572254,157.14521272,0.00014598,2]
[392412624,1761447577424,157.14521272,0.00014599,2]
[392412625,1761447582244,157.14521272,0.00014599,2]
[392412626,1761447598937,500.0,0.00014598,2]
[392412627,1761447599190,500.0,0.00014598,2]
[392412628,1761447599433,500.0,0.00014599,2]
[392412629,1761447599669,500.0,0.00014599,2]
[392412630,1761447599927,500.0,0.00014599,2]
[392412631,1761447600181,563.40406231,0.00014599,2]
[392412632,1761447601030,-233.86269195,0.00014674,2]
[392412633,1761447669899,630.93454116,0.00014599,2]
[392412634,1761447761377,233.0,0.000143,2]
[392412635,1761447766400,233.0,0.00014382,2]
[392412636,1761447804909,1000.0,0.00014599,2]
[392412637,1761447805178,413.36975094,0.00014599,2]
[392412638,1761447805199,586.63024906,0.00014599,2]
[392412639,1761447805420,1000.0,0.00014599,2]
[392412640,1761447805670,1000.0,0.00014599,2]
[392412641,1761447807442,1000.0,0.00014599,2]
[392412642,1761447808036,1000.0,0.00014599,2]
[392412643,1761447808082,1000.0,0.00014599,2]
[392412644,1761447808210,1000.0,0.00014599,2]
[392412645,1761447808456,1000.0,0.00014599,2]
[392412646,1761447919424,213.96859442,0.00014674,2]
[392412647,1761447954921,552.06772348,0.00014597,2]
[392412648,1761448040651,1647.34343304,0.0001463,2]
[392412649,1761448040676,387.79891187,0.0001463,2]
[392412651,1761448048101,200.0,0.000146,2]
[392412653,1761448162782,168.0,0.0001427,2]
[392412654,1761448177310,418.0,0.00015,7]
[392412655,1761448220056,213.96859442,0.00014674,2]
[392412656,1761448231062,-76.13730805,0.00014674,2]
[392412657,1761448231089,-300.0,0.00014694,2]
[392412658,1761448231116,-1200.0,0.00014694,2]
[392412667,1761448232097,-467.92464639,0.00014695,2]
[392412668,1761448232107,-208.08695791,0.00014695,2]
[392412670,1761448235123,483.05925808,0.00014598,2]
[392412711,1761448237922,-36.11405721,0.00014695,2]
[392412713,1761448237932,-500.0,0.00014695,2]
[392412715,1761448237941,-510.83515683,0.00014695,2]
[392412717,1761448237950,-500.0,0.00014695,2]
[392412719,1761448237959,-550.94910191,0.00014695,2]
[392412721,1761448237968,-187.39088353,0.00014695,2]
[392412761,1761448240229,-304.74216565,0.00014695,2]
[392412763,1761448240239,-500.0,0.00014695,2]
[392412765,1761448240248,-53.13174186,0.00014696,2]
[392412792,1761448240487,-2019.43637253,0.00014696,2]
[392412794,1761448240502,-43170.05575283,0.00014696,2]
[392412796,1761448240512,-554.01,0.00014698,2]
[392412798,1761448240521,-554.01,0.00014698,2]
[392412800,1761448240530,-502.95,0.00014698,2]
[392412802,1761448240540,-502.95,0.00014698,2]
[392412804,1761448240549,-554.01,0.00014699,2]
[392412806,1761448240558,-502.95,0.00014699,2]
[392412808,1761448240567,-167.59185225,0.000147,2]
[392412811,1761448240577,-301.66533405,0.000147,2]
[392412813,1761448240586,-536.29392719,0.000147,2]
[392412815,1761448240595,-837.12130198,0.000147,2]
[392412817,1761448240604,-410.69661366,0.000147,2]
[392412819,1761448240614,-340.58499018,0.000147,2]
[392412820,1761448240623,-613.05298233,0.000147,2]
[392412822,1761448240632,-1089.87196859,0.000147,2]
[392412825,1761448240642,-1701.22202597,0.000147,2]
[392412827,1761448240651,-310.0,0.00014755,2]
[392412829,1761448240660,-310.0,0.00014766,2]
[392412830,1761448240669,-6891.78287816,0.00014773,2]
[392412832,1761448240678,-178.207,0.00014799,2]
[392412834,1761448240688,-233.0,0.00014818,2]
[392412837,1761448240698,-98176.07488149,0.0001486,2]
[392412839,1761448240707,-2486.1840322,0.0001486,2]
[392412860,1761448240902,-3e-08,0.0001486,2]
[392413084,1761448243109,-533.99159341,0.0001486,2]
[392413371,1761448246092,-1486.85641282,0.0001486,2]
[392413376,1761448291823,1000.0,0.00013956,2]
[392413377,1761448345488,500.0,0.00014698,2]
[392413378,1761448345732,500.0,0.00014698,2]
[392413379,1761448346327,500.0,0.00014699,2]
[392413380,1761448353712,1293.285256,0.00013699,2]
[392413382,1761448361374,180.028106,0.00018677,7]
[392413383,1761448434803,5513.42630252,0.00014773,2]
[392413384,1761448445638,693.29844148,0.00013934,2]
[392413385,1761448445661,310.69160732,0.00013934,2]
[392413386,1761448452150,1000.0,0.00030137,120]
[392413387,1761448506827,422.67685082,0.00014773,2]
[392413388,1761448548526,800.0,0.00030137,120]
[392413389,1761448556539,168.0,0.00014816,2]
[392413390,1761448569405,2035.14234491,0.00014676,2]
[392413391,1761448592822,264.82,0.00014823,2]
[392413393,1761448665372,849.2495586,0.00013877,2]
[392413394,1761448676323,177.75119033,0.000147,2]
[392413395,1761448774967,4410.74104204,0.00014773,2]
[392413396,1761448777060,369.84224445,0.00014773,2]
[392413397,1761448824578,208.80364456,0.000147,2]
[392413398,1761448826110,375.8465602,0.000147,2]
[392413399,1761448827789,406.44495677,0.000147,2]
[392413400,1761448827812,261.72670581,0.000147,2]
[392413401,1761448829869,1042.97420456,0.000147,2]
[392413402,1761448899063,565.704979,0.00013877,2]
[392413403,1761448932083,-6300.64003821,0.0001486,2]
[392413404,1761448932097,-10000.01,0.0001486,2]
[392413405,1761448932120,-10000.01,0.0001486,2]
[392413406,1761448932149,-10000.01,0.0001486,2]
[392413407,1761448932176,-10000.01,0.0001486,2]
[392413408,1761448938506,-10000.01,0.0001486,2]
[392413409,1761448938629,-10000.01,0.0001486,2]
[392413410,1761448938756,-10000.01,0.0001486,2]
[392413411,1761448938861,-10000.01,0.0001486,2]